[Event "*** SCC Grand Prix: Titled Tuesday Blitz"]
[Site "Chess.com"]
[Date "2020.10.13"]
[Round "6"]
[White "W_Amadeus"]
[Black "wonderfultime"]
[Result "0-1"]
[WhiteElo "2696"]
[BlackElo "2916"]
[TimeControl "180+1"]
[EndTime "11:08:30 PDT"]
[Termination "wonderfultime won by resignation"]

1. e4 {[%clk 0:03:00.9]} 1... c5 {[%clk 0:02:59.4]} 2. Nf3 {[%clk 0:03:00.4]}
2... Nf6 {[%clk 0:02:59.8]} 3. e5 {[%clk 0:02:53.6]} 3... Nd5 {[%clk 0:02:59.2]}
4. Nc3 {[%clk 0:02:54.1]} 4... e6 {[%clk 0:02:59.2]} 5. Ne4 {[%clk 0:02:53]}
5... f5 {[%clk 0:02:56.2]} 6. Nc3 {[%clk 0:02:52.5]} 6... Ne7 {[%clk 0:02:55.3]}
7. d4 {[%clk 0:02:42.3]} 7... cxd4 {[%clk 0:02:56.2]} 8. Nxd4 {[%clk 0:02:41.5]}
8... a6 {[%clk 0:02:55.6]} 9. g3 {[%clk 0:02:21.4]} 9... Nbc6 {[%clk 0:02:47.1]}
10. f4 {[%clk 0:02:07.8]} 10... Nxd4 {[%clk 0:02:40.1]} 11. Qxd4 {[%clk
0:02:08.7]} 11... Nc6 {[%clk 0:02:41]} 12. Qf2 {[%clk 0:02:06.9]} 12... d6
{[%clk 0:02:41.5]} 13. exd6 {[%clk 0:02:06.1]} 13... Bxd6 {[%clk 0:02:41.8]} 14.
Be3 {[%clk 0:02:04.8]} 14... Bb4 {[%clk 0:02:39.9]} 15. Bg2 {[%clk 0:02:03.7]}
15... O-O {[%clk 0:02:34.5]} 16. O-O {[%clk 0:02:02]} 16... Re8 {[%clk
0:02:22.4]} 17. Na4 {[%clk 0:01:55.4]} 17... e5 {[%clk 0:02:10.5]} 18. Rad1
{[%clk 0:01:18.5]} 18... Qf6 {[%clk 0:02:02.8]} 19. c3 {[%clk 0:01:11.4]} 19...
Bf8 {[%clk 0:01:58.4]} 20. Nb6 {[%clk 0:01:07.2]} 20... Rb8 {[%clk 0:01:58.5]}
21. fxe5 {[%clk 0:00:54.9]} 21... Nxe5 {[%clk 0:01:57.2]} 22. Bd4 {[%clk
0:00:31.9]} 22... Qg6 {[%clk 0:01:39.3]} 23. Nxc8 {[%clk 0:00:29]} 23... Rbxc8
{[%clk 0:01:38.6]} 24. Qxf5 {[%clk 0:00:29.4]} 24... Nc6 {[%clk 0:00:45.2]} 25.
Bd5+ {[%clk 0:00:20]} 25... Kh8 {[%clk 0:00:44.8]} 26. Qxg6 {[%clk 0:00:20.2]}
26... hxg6 {[%clk 0:00:45.7]} 27. Bf7 {[%clk 0:00:20]} 27... Re2 {[%clk
0:00:45.2]} 28. Bxg6 {[%clk 0:00:12.2]} 28... Nxd4 {[%clk 0:00:39.6]} 29. cxd4
{[%clk 0:00:12.8]} 29... Rxb2 {[%clk 0:00:38.7]} 30. d5 {[%clk 0:00:10.6]} 30...
Bd6 {[%clk 0:00:37.1]} 31. Kh1 {[%clk 0:00:09.1]} 31... Rxa2 {[%clk 0:00:34.1]}
32. Rd4 {[%clk 0:00:09.5]} 32... Be7 {[%clk 0:00:18.3]} 33. d6 {[%clk
0:00:08.4]} 33... Bf6 {[%clk 0:00:18.6]} 34. d7 {[%clk 0:00:04.9]} 34... Rg8
{[%clk 0:00:11.1]} 35. Re4 {[%clk 0:00:02.7]} 35... Rd2 {[%clk 0:00:10.2]} 36.
Be8 {[%clk 0:00:02.5]} 36... b5 {[%clk 0:00:06.5]} 37. Rf5 {[%clk 0:00:02.7]}
37... Rf8 {[%clk 0:00:06.4]} 38. Rh5+ {[%clk 0:00:02.4]} 38... Kg8 {[%clk
0:00:07]} 39. Rc5 {[%clk 0:00:02.7]} 39... b4 {[%clk 0:00:06.2]} 40. Rc8 {[%clk
0:00:02.2]} 40... b3 {[%clk 0:00:06.5]} 41. Bg6 {[%clk 0:00:02.6]} 41... Rd1+
{[%clk 0:00:04.4]} 42. Kg2 {[%clk 0:00:02.6]} 42... Bd8 {[%clk 0:00:04.2]} 43.
Re8 {[%clk 0:00:01.8]} 43... Rd2+ {[%clk 0:00:03.3]} 44. Kh3 {[%clk 0:00:01.5]}
44... Rxd7 {[%clk 0:00:04.2]} 45. Rxf8+ {[%clk 0:00:01.8]} 45... Kxf8 {[%clk
0:00:05.1]} 46. Bf5 {[%clk 0:00:02.4]} 46... Rd4 {[%clk 0:00:04.7]} 47. Rb8
{[%clk 0:00:02.2]} 47... a5 {[%clk 0:00:04.2]} 48. Be6 {[%clk 0:00:01.9]} 48...
a4 {[%clk 0:00:04.2]} 49. Bxb3 {[%clk 0:00:02.2]} 49... axb3 {[%clk 0:00:05.1]}
50. Rxb3 {[%clk 0:00:02.7]} 50... Bf6 {[%clk 0:00:05.8]} 51. Rf3 {[%clk
0:00:03.2]} 51... Kf7 {[%clk 0:00:06.2]} 52. Kg2 {[%clk 0:00:03.3]} 52... Kg6
{[%clk 0:00:06.8]} 53. h4 {[%clk 0:00:03.4]} 53... Kh5 {[%clk 0:00:07.2]} 54.
Kh3 {[%clk 0:00:03.9]} 54... Kh6 {[%clk 0:00:07.1]} 55. Rb3 {[%clk 0:00:02.9]}
55... Be5 {[%clk 0:00:07.2]} 56. Rf3 {[%clk 0:00:03.2]} 56... Kg6 {[%clk
0:00:07.4]} 57. Re3 {[%clk 0:00:03.6]} 57... Kf5 {[%clk 0:00:07.8]} 58. Rf3+
{[%clk 0:00:04.2]} 58... Ke4 {[%clk 0:00:08.3]} 59. Rf1 {[%clk 0:00:02]} 59...
Rd3 {[%clk 0:00:08.4]} 60. Rg1 {[%clk 0:00:01.9]} 60... Bd4 {[%clk 0:00:07.9]}
61. Re1+ {[%clk 0:00:01.2]} 61... Kf3 {[%clk 0:00:08.5]} 62. Rf1+ {[%clk
0:00:01.7]} 62... Bf2 {[%clk 0:00:09.1]} 63. Kh2 {[%clk 0:00:02.1]} 63... Ke2
{[%clk 0:00:09.4]} 64. Ra1 {[%clk 0:00:02.5]} 64... Bxg3+ {[%clk 0:00:09.7]} 65.
Kg2 {[%clk 0:00:02.5]} 65... Bxh4 {[%clk 0:00:10.2]} 66. Ra4 {[%clk 0:00:02.7]}
66... Bf6 {[%clk 0:00:10.1]} 67. Rg4 {[%clk 0:00:02.3]} 67... Re3 {[%clk
0:00:09.6]} 0-1

[Event "*** SCC Grand Prix: Titled Tuesday Blitz"]
[Site "Chess.com"]
[Date "2020.10.13"]
[Round "6"]
[White "deribas12345"]
[Black "ThePatrick27"]
[Result "0-1"]
[WhiteElo "2672"]
[BlackElo "2538"]
[TimeControl "180+1"]
[EndTime "11:08:32 PDT"]
[Termination "ThePatrick27 won by resignation"]

1. d4 {[%clk 0:03:00.5]} 1... Nf6 {[%clk 0:02:59.9]} 2. c4 {[%clk 0:02:59.8]}
2... e6 {[%clk 0:02:57]} 3. Nc3 {[%clk 0:02:59.3]} 3... Bb4 {[%clk 0:02:56.8]}
4. a3 {[%clk 0:02:57.8]} 4... Bxc3+ {[%clk 0:02:51.4]} 5. bxc3 {[%clk
0:02:58.7]} 5... O-O {[%clk 0:02:48.8]} 6. f3 {[%clk 0:02:58.8]} 6... d6 {[%clk
0:02:39.9]} 7. e4 {[%clk 0:02:57.7]} 7... b6 {[%clk 0:02:37.6]} 8. Bd3 {[%clk
0:02:57]} 8... Bb7 {[%clk 0:02:33.8]} 9. Ne2 {[%clk 0:02:56.7]} 9... c5 {[%clk
0:02:27.3]} 10. d5 {[%clk 0:02:51.5]} 10... exd5 {[%clk 0:02:05.5]} 11. cxd5
{[%clk 0:02:44.4]} 11... Nbd7 {[%clk 0:02:02.2]} 12. O-O {[%clk 0:02:42.5]}
12... Qc7 {[%clk 0:01:55.2]} 13. f4 {[%clk 0:02:33.7]} 13... Rfe8 {[%clk
0:01:47.1]} 14. Ng3 {[%clk 0:02:24.7]} 14... c4 {[%clk 0:01:47.3]} 15. Bc2
{[%clk 0:02:24.3]} 15... Nc5 {[%clk 0:01:46.1]} 16. Qf3 {[%clk 0:02:06.9]} 16...
Bc8 {[%clk 0:01:22.2]} 17. h3 {[%clk 0:01:52.9]} 17... Bd7 {[%clk 0:01:17]} 18.
Be3 {[%clk 0:01:49]} 18... Nb3 {[%clk 0:00:54.1]} 19. Bxb3 {[%clk 0:01:41.6]}
19... cxb3 {[%clk 0:00:53.6]} 20. Bd4 {[%clk 0:01:42.2]} 20... Rec8 {[%clk
0:00:23.6]} 21. Kh1 {[%clk 0:01:32.2]} 21... Ne8 {[%clk 0:00:20.5]} 22. Rab1
{[%clk 0:01:29]} 22... Bb5 {[%clk 0:00:19.8]} 23. Rfe1 {[%clk 0:01:26.5]} 23...
Bc4 {[%clk 0:00:20.4]} 24. Nf5 {[%clk 0:01:25]} 24... Qd8 {[%clk 0:00:20.3]} 25.
Qg4 {[%clk 0:01:20.6]} 25... f6 {[%clk 0:00:20.9]} 26. e5 {[%clk 0:00:59.8]}
26... dxe5 {[%clk 0:00:18.6]} 27. fxe5 {[%clk 0:01:00.1]} 27... Bxd5 {[%clk
0:00:17.9]} 28. exf6 {[%clk 0:00:58.2]} 28... Rc7 {[%clk 0:00:09.7]} 29. Ne7+
{[%clk 0:00:40.7]} 29... Rxe7 {[%clk 0:00:09.7]} 30. Rxe7 {[%clk 0:00:40.7]}
30... g6 {[%clk 0:00:08.1]} 31. Rg7+ {[%clk 0:00:38.6]} 31... Nxg7 {[%clk
0:00:07.3]} 32. fxg7 {[%clk 0:00:38.8]} 32... Qe8 {[%clk 0:00:04.7]} 33. Rf1
{[%clk 0:00:35.6]} 33... Qe4 {[%clk 0:00:03.7]} 34. Qxe4 {[%clk 0:00:25.7]}
34... Bxe4 {[%clk 0:00:04.6]} 35. c4 {[%clk 0:00:25.6]} 35... b2 {[%clk
0:00:04.8]} 36. Bxb2 {[%clk 0:00:25.4]} 36... Rc8 {[%clk 0:00:04.6]} 37. Rd1
{[%clk 0:00:16.3]} 37... Bf5 {[%clk 0:00:02.4]} 38. a4 {[%clk 0:00:14.9]} 38...
Be6 {[%clk 0:00:02.7]} 39. Kh2 {[%clk 0:00:08.2]} 39... Bxc4 {[%clk 0:00:01.9]}
40. g4 {[%clk 0:00:08.3]} 40... h5 {[%clk 0:00:02.5]} 41. g5 {[%clk 0:00:08.5]}
41... Bb3 {[%clk 0:00:02.7]} 42. Bf6 {[%clk 0:00:08.9]} 42... Rc2+ {[%clk
0:00:02.8]} 43. Kg1 {[%clk 0:00:06.8]} 43... Rg2+ {[%clk 0:00:03.1]} 44. Kxg2
{[%clk 0:00:05.7]} 44... Bxd1 {[%clk 0:00:04]} 45. a5 {[%clk 0:00:04.9]} 45...
bxa5 {[%clk 0:00:04.9]} 46. Kf2 {[%clk 0:00:04.9]} 46... a4 {[%clk 0:00:05.3]}
47. h4 {[%clk 0:00:05.1]} 47... Bb3 {[%clk 0:00:05.8]} 48. Ke3 {[%clk
0:00:05.6]} 48... a3 {[%clk 0:00:06]} 49. Kd2 {[%clk 0:00:06.2]} 49... a5 {[%clk
0:00:05.8]} 50. Kc1 {[%clk 0:00:06.5]} 50... a4 {[%clk 0:00:06.3]} 51. Kb1
{[%clk 0:00:06.9]} 51... a2+ {[%clk 0:00:06.6]} 52. Kb2 {[%clk 0:00:06.4]} 52...
Kf7 {[%clk 0:00:07.2]} 53. Ka1 {[%clk 0:00:06.9]} 53... Ke8 {[%clk 0:00:07.2]}
54. Bd4 {[%clk 0:00:07.5]} 54... Kd7 {[%clk 0:00:07]} 55. Be5 {[%clk 0:00:08.4]}
55... Kc6 {[%clk 0:00:07.2]} 56. Bf6 {[%clk 0:00:09.3]} 56... Bg8 {[%clk
0:00:06.9]} 57. Kb2 {[%clk 0:00:10.2]} 57... Kc5 {[%clk 0:00:06.6]} 58. Ka3
{[%clk 0:00:11.1]} 58... Kb5 {[%clk 0:00:06.6]} 59. Be5 {[%clk 0:00:10.5]} 59...
Kc5 {[%clk 0:00:06.6]} 60. Kxa4 {[%clk 0:00:10.9]} 60... Kd5 {[%clk 0:00:07]}
61. Bf6 {[%clk 0:00:11.2]} 61... Ke4 {[%clk 0:00:07.3]} 62. Kb4 {[%clk
0:00:11.5]} 62... Kf4 {[%clk 0:00:07.7]} 63. Kc5 {[%clk 0:00:11.9]} 63... Kg4
{[%clk 0:00:08.1]} 64. Kd6 {[%clk 0:00:12.5]} 64... Kxh4 {[%clk 0:00:08.5]} 65.
Ke7 {[%clk 0:00:13.2]} 65... Kg4 {[%clk 0:00:08.8]} 66. Kf8 {[%clk 0:00:13.7]}
66... Bb3 {[%clk 0:00:08.9]} 67. g8=Q {[%clk 0:00:13.5]} 67... Bxg8 {[%clk
0:00:09.5]} 68. Kxg8 {[%clk 0:00:14.4]} 68... h4 {[%clk 0:00:09.6]} 69. Kf7
{[%clk 0:00:13.8]} 69... Kf5 {[%clk 0:00:10.1]} 70. Ke7 {[%clk 0:00:10.6]} 70...
h3 {[%clk 0:00:10.4]} 71. Be5 {[%clk 0:00:11]} 71... h2 {[%clk 0:00:10.3]} 72.
Kf7 {[%clk 0:00:11.9]} 72... h1=Q {[%clk 0:00:10.2]} 0-1

[Event "*** SCC Grand Prix: Titled Tuesday Blitz"]
[Site "Chess.com"]
[Date "2020.10.13"]
[Round "6"]
[White "GHANDEEVAM2003"]
[Black "PavelShkapenko"]
[Result "0-1"]
[WhiteElo "3030"]
[BlackElo "2723"]
[TimeControl "180+1"]
[EndTime "11:08:33 PDT"]
[Termination "PavelShkapenko won by resignation"]

1. d4 {[%clk 0:03:00.9]} 1... Nf6 {[%clk 0:02:59.3]} 2. Nf3 {[%clk 0:03:01]}
2... e6 {[%clk 0:02:59.6]} 3. Bg5 {[%clk 0:03:01]} 3... c5 {[%clk 0:02:58.5]} 4.
e3 {[%clk 0:03:00.7]} 4... cxd4 {[%clk 0:02:58.3]} 5. exd4 {[%clk 0:03:01.6]}
5... b6 {[%clk 0:02:58.8]} 6. Nbd2 {[%clk 0:03:01.5]} 6... Bb7 {[%clk
0:02:59.1]} 7. Bd3 {[%clk 0:03:02]} 7... Be7 {[%clk 0:02:58.1]} 8. O-O {[%clk
0:03:02.4]} 8... d6 {[%clk 0:02:55.9]} 9. Re1 {[%clk 0:03:02.6]} 9... Nbd7
{[%clk 0:02:55.7]} 10. a4 {[%clk 0:03:00.7]} 10... a6 {[%clk 0:02:55.3]} 11. c3
{[%clk 0:03:00.3]} 11... O-O {[%clk 0:02:55.1]} 12. Qe2 {[%clk 0:03:00]} 12...
h6 {[%clk 0:02:55.2]} 13. Bh4 {[%clk 0:02:59.1]} 13... Nh5 {[%clk 0:02:54.2]}
14. Bg3 {[%clk 0:02:55.2]} 14... Nxg3 {[%clk 0:02:52.5]} 15. hxg3 {[%clk
0:02:56.1]} 15... Re8 {[%clk 0:02:48.4]} 16. Be4 {[%clk 0:02:55.9]} 16... Bxe4
{[%clk 0:02:47.4]} 17. Nxe4 {[%clk 0:02:56.8]} 17... Nf6 {[%clk 0:02:44.4]} 18.
Qc2 {[%clk 0:02:52.6]} 18... Qd7 {[%clk 0:02:39.6]} 19. Qb3 {[%clk 0:02:51.6]}
19... Qc6 {[%clk 0:02:38.3]} 20. Nfd2 {[%clk 0:02:48.7]} 20... Nxe4 {[%clk
0:02:34.8]} 21. Rxe4 {[%clk 0:02:49.6]} 21... d5 {[%clk 0:02:33.6]} 22. Re2
{[%clk 0:02:48.6]} 22... b5 {[%clk 0:02:33.9]} 23. Nf3 {[%clk 0:02:46.7]} 23...
Bd6 {[%clk 0:02:27.5]} 24. Ne1 {[%clk 0:02:46.5]} 24... Reb8 {[%clk 0:02:23.6]}
25. Nd3 {[%clk 0:02:46.3]} 25... bxa4 {[%clk 0:02:23.1]} 26. Qxa4 {[%clk
0:02:46.4]} 26... Qb5 {[%clk 0:02:18.1]} 27. Rd2 {[%clk 0:02:42.9]} 27... h5
{[%clk 0:01:54.5]} 28. Rdd1 {[%clk 0:02:41.7]} 28... g6 {[%clk 0:01:46.7]} 29.
Ra2 {[%clk 0:02:39.9]} 29... Kg7 {[%clk 0:01:28.9]} 30. Qc2 {[%clk 0:02:39.4]}
30... Rb6 {[%clk 0:01:18.9]} 31. Rda1 {[%clk 0:02:37.8]} 31... a5 {[%clk
0:01:08.6]} 32. Ra4 {[%clk 0:02:26.6]} 32... Rba6 {[%clk 0:01:07.8]} 33. R1a2
{[%clk 0:02:26]} 33... Kg8 {[%clk 0:01:06.2]} 34. Nc1 {[%clk 0:02:25.5]} 34...
Bc7 {[%clk 0:01:03.1]} 35. Nb3 {[%clk 0:02:23.9]} 35... Bb6 {[%clk 0:01:03.3]}
36. Nd2 {[%clk 0:02:21.3]} 36... Bc7 {[%clk 0:00:59.8]} 37. Nf3 {[%clk
0:02:18.8]} 37... Kg7 {[%clk 0:00:59]} 38. Ra1 {[%clk 0:02:15.1]} 38... Bd6
{[%clk 0:00:55]} 39. b3 {[%clk 0:02:07]} 39... Rb6 {[%clk 0:00:48]} 40. Nd2
{[%clk 0:02:03.6]} 40... Rba6 {[%clk 0:00:41.1]} 41. c4 {[%clk 0:02:02.9]} 41...
Qb7 {[%clk 0:00:36.8]} 42. Nf1 {[%clk 0:01:42.5]} 42... Bb4 {[%clk 0:00:33.5]}
43. Ne3 {[%clk 0:01:40.9]} 43... dxc4 {[%clk 0:00:33.8]} 44. bxc4 {[%clk
0:01:41.8]} 44... Rc8 {[%clk 0:00:28.6]} 45. Qb2 {[%clk 0:01:40.2]} 45... Kg8
{[%clk 0:00:27]} 46. c5 {[%clk 0:01:29.6]} 46... Raa8 {[%clk 0:00:25.5]} 47. Nc2
{[%clk 0:01:26.3]} 47... Rab8 {[%clk 0:00:22.5]} 48. Rb1 {[%clk 0:01:09.3]}
48... Qd7 {[%clk 0:00:20.8]} 49. Qa2 {[%clk 0:01:05.7]} 49... Bc3 {[%clk
0:00:19.7]} 50. Rb3 {[%clk 0:01:05.3]} 50... Rxb3 {[%clk 0:00:18.9]} 51. Qxb3
{[%clk 0:01:06.2]} 51... Bd2 {[%clk 0:00:17.9]} 52. Rc4 {[%clk 0:00:59.7]} 52...
Qc7 {[%clk 0:00:16.7]} 53. Qd3 {[%clk 0:00:58.2]} 53... Bc1 {[%clk 0:00:16.4]}
54. c6 {[%clk 0:00:51.8]} 54... Bb2 {[%clk 0:00:16.5]} 55. Qb3 {[%clk
0:00:49.5]} 55... Rb8 {[%clk 0:00:16.8]} 56. Qa4 {[%clk 0:00:45.5]} 56... Bc1
{[%clk 0:00:17]} 57. Ne1 {[%clk 0:00:43]} 57... Rb1 {[%clk 0:00:16.6]} 58. Qa2
{[%clk 0:00:41.5]} 58... Rb2 {[%clk 0:00:16.4]} 59. Qa3 {[%clk 0:00:38.2]} 59...
Rc2 {[%clk 0:00:15.5]} 60. Qd3 {[%clk 0:00:34.6]} 60... Rxc4 {[%clk 0:00:15.6]}
61. Qxc4 {[%clk 0:00:35.5]} 61... Ba3 {[%clk 0:00:15.1]} 62. Qb5 {[%clk
0:00:31.8]} 62... Bd6 {[%clk 0:00:14.7]} 63. Nd3 {[%clk 0:00:32.3]} 63... Kg7
{[%clk 0:00:14.8]} 64. Nc5 {[%clk 0:00:30.6]} 64... Kg8 {[%clk 0:00:13.5]} 65.
Na6 {[%clk 0:00:29.2]} 65... Qa7 {[%clk 0:00:13.6]} 66. Nc5 {[%clk 0:00:25.9]}
66... a4 {[%clk 0:00:09.8]} 67. Nxa4 {[%clk 0:00:25.6]} 67... Qxd4 {[%clk
0:00:09.2]} 68. Nb6 {[%clk 0:00:13.8]} 68... Bxg3 {[%clk 0:00:09.1]} 69. Qf1
{[%clk 0:00:14.2]} 69... Qxb6 {[%clk 0:00:08.1]} 0-1

[Event "*** SCC Grand Prix: Titled Tuesday Blitz"]
[Site "Chess.com"]
[Date "2020.10.13"]
[Round "6"]
[White "Alexander_Moskalenko"]
[Black "mirceaparligras"]
[Result "1-0"]
[WhiteElo "2816"]
[BlackElo "2632"]
[TimeControl "180+1"]
[EndTime "11:08:37 PDT"]
[Termination "Alexander_Moskalenko won by resignation"]

1. d4 {[%clk 0:03:00.9]} 1... Nf6 {[%clk 0:02:59.6]} 2. c4 {[%clk 0:03:00.5]}
2... c5 {[%clk 0:02:59.5]} 3. g3 {[%clk 0:03:01.4]} 3... cxd4 {[%clk 0:02:58.1]}
4. Nf3 {[%clk 0:03:00.3]} 4... e5 {[%clk 0:02:52.6]} 5. e3 {[%clk 0:03:00.7]}
5... dxe3 {[%clk 0:02:40.1]} 6. Bxe3 {[%clk 0:03:01.6]} 6... d6 {[%clk 0:02:35]}
7. Nc3 {[%clk 0:03:02.1]} 7... Be7 {[%clk 0:02:34.4]} 8. Bd3 {[%clk 0:03:01.1]}
8... O-O {[%clk 0:02:31.7]} 9. O-O {[%clk 0:03:01.6]} 9... Bg4 {[%clk
0:02:26.8]} 10. Be2 {[%clk 0:02:53.3]} 10... Nbd7 {[%clk 0:02:21.8]} 11. Nd2
{[%clk 0:02:49]} 11... Be6 {[%clk 0:02:15.9]} 12. Bf3 {[%clk 0:02:48.5]} 12...
Nc5 {[%clk 0:02:01.1]} 13. b4 {[%clk 0:02:41.8]} 13... Ncd7 {[%clk 0:01:34.4]}
14. a3 {[%clk 0:02:41.7]} 14... Qb8 {[%clk 0:01:29.7]} 15. Rc1 {[%clk
0:02:41.4]} 15... Rc8 {[%clk 0:01:27.1]} 16. Re1 {[%clk 0:02:20.4]} 16... a5
{[%clk 0:01:22.1]} 17. Bg2 {[%clk 0:02:13.1]} 17... axb4 {[%clk 0:01:21.3]} 18.
axb4 {[%clk 0:02:14]} 18... Bxc4 {[%clk 0:01:20.2]} 19. Nxc4 {[%clk 0:02:13.8]}
19... Rxc4 {[%clk 0:01:21.1]} 20. Qb3 {[%clk 0:02:14.3]} 20... Rc8 {[%clk
0:01:16.4]} 21. Nd5 {[%clk 0:02:14.8]} 21... Nxd5 {[%clk 0:01:09.7]} 22. Bxd5
{[%clk 0:02:15.7]} 22... Rf8 {[%clk 0:01:08.7]} 23. b5 {[%clk 0:02:08.6]} 23...
Nf6 {[%clk 0:01:02.3]} 24. Bg2 {[%clk 0:02:09.1]} 24... d5 {[%clk 0:00:59.4]}
25. Bxd5 {[%clk 0:02:05.3]} 25... Nxd5 {[%clk 0:00:59.3]} 26. Qxd5 {[%clk
0:02:06.2]} 26... Rd8 {[%clk 0:00:57.1]} 27. Qe4 {[%clk 0:02:05.9]} 27... Rc8
{[%clk 0:00:34.6]} 28. b6 {[%clk 0:01:38.7]} 28... Rxc1 {[%clk 0:00:31.3]} 29.
Rxc1 {[%clk 0:01:39.6]} 29... Bd6 {[%clk 0:00:29.2]} 30. h4 {[%clk 0:01:38.8]}
30... h6 {[%clk 0:00:28.4]} 31. h5 {[%clk 0:01:34.1]} 31... Ra5 {[%clk
0:00:16.8]} 32. Qf5 {[%clk 0:01:31.8]} 32... Ra8 {[%clk 0:00:16.4]} 33. Qg4
{[%clk 0:01:26.5]} 33... Kh8 {[%clk 0:00:15.5]} 34. Qd7 {[%clk 0:01:27.1]} 34...
Kg8 {[%clk 0:00:14.5]} 35. Kh2 {[%clk 0:01:21.7]} 35... e4 {[%clk 0:00:14.5]}
36. Kg2 {[%clk 0:01:17.3]} 36... Be5 {[%clk 0:00:13.4]} 37. Rc4 {[%clk
0:01:15.9]} 37... f5 {[%clk 0:00:12.1]} 38. Qxf5 {[%clk 0:01:15.1]} 38... Bf6
{[%clk 0:00:06.4]} 39. Qd5+ {[%clk 0:01:13.7]} 39... Kh8 {[%clk 0:00:05.7]} 40.
Rxe4 {[%clk 0:01:14.6]} 40... Qd8 {[%clk 0:00:05]} 41. Qxb7 {[%clk 0:01:12.9]}
41... Rb8 {[%clk 0:00:05]} 42. Qc6 {[%clk 0:01:13.2]} 42... Qd3 {[%clk
0:00:03.9]} 43. Re6 {[%clk 0:01:11.7]} 43... Rd8 {[%clk 0:00:03.3]} 44. Rxf6
{[%clk 0:01:11.7]} 44... gxf6 {[%clk 0:00:03.4]} 45. Qxf6+ {[%clk 0:01:12.6]}
45... Kg8 {[%clk 0:00:04.1]} 46. Qxh6 {[%clk 0:01:11.5]} 46... Qe4+ {[%clk
0:00:02.9]} 47. Kh2 {[%clk 0:01:08.3]} 47... Rd1 {[%clk 0:00:02.9]} 48. Qg5+
{[%clk 0:01:05.9]} 48... Kh7 {[%clk 0:00:02.5]} 49. Qh6+ {[%clk 0:01:04.1]}
49... Kg8 {[%clk 0:00:02.5]} 50. Qg6+ {[%clk 0:00:29.9]} 50... Qxg6 {[%clk
0:00:02.2]} 51. hxg6 {[%clk 0:00:30.8]} 51... Kg7 {[%clk 0:00:03.1]} 52. Bf4
{[%clk 0:00:31.5]} 52... Rb1 {[%clk 0:00:02.6]} 53. Bc7 {[%clk 0:00:30.8]} 53...
Kxg6 {[%clk 0:00:03.2]} 54. g4 {[%clk 0:00:31.5]} 54... Kg5 {[%clk 0:00:03.4]}
55. Kg3 {[%clk 0:00:30.5]} 55... Rb3+ {[%clk 0:00:04]} 56. f3 {[%clk 0:00:30.4]}
56... Kf6 {[%clk 0:00:04.6]} 57. Bd8+ {[%clk 0:00:28.3]} 57... Kg6 {[%clk
0:00:04.3]} 58. Bc7 {[%clk 0:00:27.7]} 58... Kg5 {[%clk 0:00:04]} 59. Kg2 {[%clk
0:00:23.1]} 59... Rb2+ {[%clk 0:00:03.4]} 60. Kh3 {[%clk 0:00:23.7]} 60... Rb3
{[%clk 0:00:04]} 61. Kg3 {[%clk 0:00:24.3]} 61... Kf6 {[%clk 0:00:04.5]} 62. Kh4
{[%clk 0:00:23.6]} 62... Kg6 {[%clk 0:00:03.7]} 63. f4 {[%clk 0:00:23.6]} 63...
Rb4 {[%clk 0:00:03.6]} 64. f5+ {[%clk 0:00:24.1]} 64... Kf6 {[%clk 0:00:04.2]}
65. Bd8+ {[%clk 0:00:22.1]} 65... Ke5 {[%clk 0:00:04.1]} 66. Kg5 {[%clk
0:00:23]} 66... Kd6 {[%clk 0:00:02.6]} 67. f6 {[%clk 0:00:21.3]} 67... Ke6
{[%clk 0:00:03]} 68. Kh5 {[%clk 0:00:18.2]} 68... Rb1 {[%clk 0:00:01.2]} 69. g5
{[%clk 0:00:17.9]} 69... Kf5 {[%clk 0:00:01.7]} 70. Kh6 {[%clk 0:00:17.9]} 70...
Rh1+ {[%clk 0:00:01.9]} 71. Kg7 {[%clk 0:00:18.2]} 71... Rb1 {[%clk 0:00:02.3]}
72. g6 {[%clk 0:00:18.3]} 72... Rg1 {[%clk 0:00:02.1]} 73. b7 {[%clk 0:00:18.2]}
73... Rxg6+ {[%clk 0:00:02.7]} 74. Kf7 {[%clk 0:00:18.3]} 74... Rh6 {[%clk
0:00:02.9]} 75. b8=Q {[%clk 0:00:18.3]} 75... Rh7+ {[%clk 0:00:03.8]} 76. Kg8
{[%clk 0:00:18.4]} 1-0